bitfinex/quotes_BTCUSD_20250523
["timestamp","ask_amount","ask_price","bid_price","bid_amount"]
[1747991252962,0.16312189,110940.0,110930.0,1.80613696]
[1747991253786,0.15410874,110940.0,110930.0,1.80613696]
[1747991254670,0.16312189,110940.0,110930.0,1.80613696]
[1747991255063,0.15410874,110940.0,110930.0,1.80613696]
[1747991257816,0.15410874,110940.0,110930.0,1.83465616]
[1747991258661,0.15410874,110940.0,110930.0,1.84555616]
[1747991260204,0.15410874,110940.0,110930.0,1.8449282]
[1747991261092,0.15410874,110940.0,110930.0,1.816409]
[1747991262123,0.15410874,110940.0,110930.0,1.90595456]
[1747991262334,0.12240874,110940.0,110930.0,6.53850756]
[1747991262951,0.12240874,110940.0,110930.0,5.91854756]
[1747991263159,0.13770874,110940.0,110930.0,6.53846756]
[1747991264384,0.15270874,110940.0,110930.0,6.53846756]
[1747991267014,0.15270874,110940.0,110930.0,5.14259456]
[1747991267234,0.15270874,110940.0,110930.0,5.35591456]
[1747991267440,0.15270874,110940.0,110930.0,5.31081456]
[1747991268065,0.15270874,110940.0,110930.0,2.60593456]
[1747991268331,0.15270874,110940.0,110930.0,2.53672252]
[1747991268744,0.15270874,110940.0,110930.0,2.51212252]
[1747991268941,0.15270874,110940.0,110930.0,2.45712252]
[1747991270360,0.15270874,110940.0,110930.0,2.79712252]
[1747991275255,0.15270874,110940.0,110930.0,2.46852252]
[1747991280040,0.15270874,110940.0,110930.0,2.18902252]
[1747991280226,0.15270874,110940.0,110930.0,2.13402252]
[1747991280542,0.17073544,110940.0,110930.0,1.63654252]
[1747991280753,0.17073544,110940.0,110930.0,1.54699696]
[1747991280883,0.17073544,110940.0,110930.0,1.81707696]
[1747991280884,0.17073536,110940.0,110930.0,1.81707696]
[1747991281100,0.17073544,110940.0,110930.0,1.81707696]
[1747991281335,0.16172197,110940.0,110930.0,1.81707696]
[1747991281961,0.17073536,110940.0,110930.0,1.81707696]
[1747991282177,0.15270874,110940.0,110930.0,1.81707696]
[1747991282387,0.16172197,110940.0,110930.0,1.81707696]
[1747991282801,0.17974875,110940.0,110930.0,1.81707696]
[1747991283006,0.12240874,110940.0,110930.0,1.92252252]
[1747991283205,0.12240874,110940.0,110930.0,6.55507552]
[1747991283622,0.13810874,110940.0,110930.0,6.56769472]
[1747991288754,0.15390874,110940.0,110930.0,1.84483616]
[1747991289873,0.17193528,110940.0,110930.0,1.84483616]
[1747991290093,0.16292205,110940.0,110930.0,1.84483616]
[1747991290234,0.16292197,110940.0,110930.0,1.81631696]
[1747991290439,0.15390874,110940.0,110930.0,1.81631696]
[1747991290651,0.16292189,110940.0,110930.0,1.81631696]
[1747991291527,0.34319983,110940.0,110930.0,1.3389]
[1747991291817,0.35221354,110940.0,110930.0,1.18820856]
[1747991292030,0.34320007,110940.0,110930.0,0.9989]
[1747991292220,0.44728648,110940.0,110930.0,1.26898]
[1747991292883,0.44628648,110940.0,110930.0,1.60898]
[1747991293254,0.44828648,110940.0,110930.0,0.9989]
[1747991293472,0.44828648,110940.0,110930.0,1.26898]
[1747991293697,0.44828648,110940.0,110930.0,1.60898]
[1747991293915,0.44628648,110940.0,110930.0,1.60898]
[1747991294084,0.44828648,110940.0,110930.0,1.60898]
[1747991295687,0.44828648,110940.0,110930.0,0.98982]
[1747991296149,0.44828648,110940.0,110930.0,1.2599]
[1747991296879,0.44828648,110940.0,110930.0,1.33894]
[1747991297115,0.44828648,110940.0,110930.0,1.60906]
[1747991297540,0.44828648,110940.0,110930.0,1.33894]
[1747991297742,0.44828648,110940.0,110930.0,1.60906]
[1747991298809,0.70416695,110940.0,110930.0,1.25994]
[1747991299016,0.64406573,110940.0,110930.0,1.25994]
[1747991299632,0.64206573,110940.0,110930.0,1.25994]
[1747991299844,0.64406573,110940.0,110930.0,1.25994]
[1747991300049,0.64206573,110940.0,110930.0,1.25994]
[1747991300303,0.47332148,110940.0,110930.0,1.25994]
[1747991300520,0.47632148,110940.0,110930.0,1.25994]
[1747991302683,0.89753437,110940.0,110930.0,0.2609]
[1747991303107,0.90753437,110940.0,110930.0,0.2609]
[1747991303471,0.82380998,110940.0,110930.0,0.2609]
[1747991303702,0.81880998,110940.0,110930.0,0.2609]
[1747991303935,0.83280998,110940.0,110930.0,0.2609]
[1747991306559,0.83280998,110940.0,110930.0,0.2609]
[1747991306970,1.10296998,110940.0,110930.0,0.2609]
[1747991308810,0.76548148,110940.0,110930.0,0.2609]
[1747991309090,1.20249149,110940.0,110930.0,0.2609]
[1747991309276,1.11296998,110940.0,110930.0,0.2609]
[1747991311829,1.11296998,110940.0,110930.0,0.05581468]
[1747991312966,1.10296998,110940.0,110930.0,0.05581468]
[1747991321223,1.1163736,110940.0,110930.0,0.05581468]
[1747991321443,1.20597511,110940.0,110930.0,0.05581468]
[1747991326282,0.93573511,110940.0,110930.0,0.05581468]
[1747991326500,1.37471936,110940.0,110930.0,0.05581468]
[1747991326729,1.36471936,110940.0,110930.0,0.04581046]
[1747991326968,1.70471936,110940.0,110930.0,0.04581046]
[1747991327190,1.72296397,110940.0,110930.0,0.04581046]
[1747991327417,1.72715286,110940.0,110930.0,0.02921046]
[1747991327657,1.69871936,110940.0,110930.0,0.03021046]
[1747991327890,1.71810854,110940.0,110930.0,0.01361046]
[1747991328111,1.71910854,110940.0,110930.0,0.01461046]
[1747991328328,1.72110854,110940.0,110930.0,0.01461046]
[1747991328580,1.74635077,110940.0,110930.0,0.01461046]
[1747991328810,1.75735077,110940.0,110930.0,0.01561046]
[1747991337359,1.48711077,110940.0,110930.0,0.01561046]
[1747991337569,2.11931077,110940.0,110930.0,0.01561046]
[1747991341531,0.2546993,110910.0,110900.0,0.002]
[1747991341751,0.7704343,110910.0,110900.0,0.00205101]
[1747991342202,0.7974853,110910.0,110900.0,0.00205101]
[1747991342594,0.75398436,110910.0,110900.0,0.00205101]
[1747991342899,0.76260929,110910.0,110900.0,0.00205101]
[1747991343504,0.76660929,110910.0,110900.0,0.00205101]
[1747991343740,0.59786504,110910.0,110900.0,0.00205101]
[1747991344173,0.60286504,110910.0,110900.0,0.00205101]
[1747991344381,0.43412079,110910.0,110900.0,0.00205101]
[1747991344578,0.57106504,110910.0,110900.0,0.00205101]
[1747991344819,0.57106504,110910.0,110900.0,0.01785101]
[1747991345026,0.64858994,110910.0,110900.0,0.01785101]
[1747991345226,0.64858994,110910.0,110900.0,0.00205101]
[1747991345437,0.56244011,110910.0,110900.0,0.00205101]
[1747991350146,0.57884011,110910.0,110900.0,0.00205101]
[1747991353465,0.59534011,110910.0,110900.0,0.00205101]
[1747991354538,0.57884011,110910.0,110900.0,0.00205101]
[1747991355822,0.74758436,110910.0,110900.0,0.00205101]
[1747991356245,0.41009586,110910.0,110900.0,0.00205101]
[1747991356464,0.74758436,110910.0,110900.0,0.00205101]
[1747991357453,0.57884011,110910.0,110900.0,0.00205101]
[1747991358497,0.56244011,110910.0,110900.0,0.00205101]
[1747991362415,0.57159212,110910.0,110900.0,0.00205101]
[1747991363939,0.40284787,110910.0,110900.0,0.00205101]
[1747991364136,0.57159212,110910.0,110900.0,0.00205101]
[1747991365356,0.63526799,110910.0,110900.0,0.00205101]
[1747991365747,0.57159212,110910.0,110900.0,0.00205101]
[1747991372022,0.59692645,110910.0,110900.0,0.00205101]
[1747991372215,0.69180645,110910.0,110900.0,0.00205101]
[1747991372551,0.59692645,110910.0,110900.0,0.00205101]
[1747991373127,0.57159212,110910.0,110900.0,0.00205101]
[1747991373425,0.63750372,110910.0,110900.0,0.00205101]
[1747991373645,0.56159212,110910.0,110900.0,0.00205101]
[1747991373852,0.57159212,110910.0,110900.0,0.00205101]
[1747991374627,0.59693196,110910.0,110900.0,0.00205101]
[1747991375664,0.57159212,110910.0,110900.0,0.00205101]
[1747991376321,0.59693215,110910.0,110900.0,0.00205101]
[1747991380758,0.57159212,110910.0,110900.0,0.00205101]
[1747991380908,0.59693736,110910.0,110900.0,0.00205101]
[1747991381513,0.60556229,110910.0,110900.0,0.00205101]
[1747991381920,0.60556229,110910.0,110900.0,0.01765101]
[1747991383041,0.60556229,110910.0,110900.0,0.00205101]
[1747991384626,0.93598138,110910.0,110900.0,0.00205101]
[1747991384851,0.87952805,110910.0,110900.0,0.00205101]
[1747991385053,0.7107838,110910.0,110900.0,0.00205101]
[1747991385660,0.62126229,110910.0,110900.0,0.00205101]
[1747991385865,0.61263736,110910.0,110900.0,0.00205101]
[1747991386890,0.67512313,110910.0,110900.0,0.00205101]
[1747991387088,0.68374806,110910.0,110900.0,0.00205101]
[1747991388564,0.67512313,110910.0,110900.0,0.00205101]
[1747991390871,0.76464464,110910.0,110900.0,0.00205101]
[1747991391250,0.67512313,110910.0,110900.0,0.00205101]
[1747991393002,0.65942313,110910.0,110900.0,0.00205101]
[1747991393938,0.65027112,110910.0,110900.0,0.03525101]
[1747991394165,0.46618163,110910.0,110900.0,0.03525101]
[1747991395971,0.40098163,110910.0,110900.0,0.03525101]
[1747991396553,0.41098163,110910.0,110900.0,0.03525101]
[1747991397807,0.40098163,110910.0,110900.0,0.03525101]
[1747991399818,0.33849586,110910.0,110900.0,0.03525101]
[1747991406206,0.50724011,110910.0,110900.0,0.03525101]
[1747991407665,0.48018911,110910.0,110900.0,0.03525101]
[1747991407910,0.56019642,110910.0,110900.0,0.00205101]
[1747991408739,0.53238911,110910.0,110900.0,0.00205101]
[1747991412767,0.52238911,110910.0,110900.0,0.00205101]
[1747991413397,0.50018911,110910.0,110900.0,0.00205101]
[1747991413577,0.49018911,110910.0,110900.0,0.00205101]
[1747991415367,0.52238911,110910.0,110900.0,0.00205101]
[1747991418076,0.18941084,110870.0,110860.0,0.2111046]
[1747991418288,0.2789564,110870.0,110860.0,0.5647046]
[1747991418502,0.2789564,110870.0,110860.0,0.56521496]
[1747991419351,0.2789564,110870.0,110860.0,0.83953496]
[1747991419569,0.18038999,110880.0,110870.0,0.00901957]
[1747991419792,0.01803637,110880.0,110870.0,0.19842992]
[1747991420006,0.03607339,110880.0,110870.0,0.21646808]
[1747991420688,0.0270548,110880.0,110870.0,0.21646808]
[1747991420890,0.03607339,110880.0,110870.0,0.21646808]
[1747991421103,0.03607331,110880.0,110870.0,0.21646808]
[1747991421305,0.03607331,110880.0,110870.0,0.24866808]
[1747991421727,0.03607331,110880.0,110870.0,0.24966808]
[1747991423398,0.01803637,110880.0,110870.0,0.24966808]
[1747991424496,0.20944341,110890.0,110880.0,0.57933071]
[1747991424701,0.29898897,110890.0,110880.0,1.20317071]
[1747991424908,0.10958104,110890.0,110880.0,1.21218889]
[1747991425277,0.29895789,110890.0,110880.0,1.19415244]
[1747991425499,0.29895789,110890.0,110880.0,1.21218922]
[1747991425711,0.30095789,110890.0,110880.0,1.21218922]
[1747991425939,0.30195789,110890.0,110880.0,1.19415244]
[1747991426253,0.30195789,110890.0,110880.0,1.20317087]
[1747991426912,0.29294027,110890.0,110880.0,1.20317087]
[1747991429538,0.28392241,110890.0,110880.0,1.19415244]
[1747991430887,0.27490447,110890.0,110880.0,1.18513393]
[1747991431346,0.27490447,110890.0,110880.0,1.19415244]
[1747991431988,0.28392225,110890.0,110880.0,1.20317071]
[1747991432203,0.28392225,110890.0,110880.0,1.20317087]
[1747991432417,0.29293978,110890.0,110880.0,1.21218914]
[1747991432634,0.29293978,110890.0,110880.0,1.20317087]
[1747991433853,0.29293978,110890.0,110880.0,1.19415244]
[1747991434056,0.29293978,110890.0,110880.0,1.20317087]
[1747991436403,0.29293978,110890.0,110880.0,1.19415244]
[1747991436842,0.28392225,110890.0,110880.0,1.19415244]
[1747991437289,0.28392225,110890.0,110880.0,1.1941526]
[1747991437717,0.27490447,110890.0,110880.0,1.1941526]
[1747991438397,0.27490447,110890.0,110880.0,1.18513393]
[1747991439572,0.27490447,110890.0,110880.0,0.99574]
[1747991440378,0.27490447,110890.0,110880.0,0.9799]
[1747991440820,0.27490447,110890.0,110880.0,0.97919171]
[1747991441259,0.27490447,110890.0,110880.0,0.97848328]
[1747991442856,0.27490447,110890.0,110880.0,0.35468328]
[1747991443020,0.27490447,110890.0,110880.0,0.97844328]
[1747991444758,0.30720447,110890.0,110880.0,0.96234328]
[1747991445761,0.29110447,110890.0,110880.0,0.96234328]
[1747991448186,0.29110447,110890.0,110880.0,0.95950328]
[1747991448575,0.30710447,110890.0,110880.0,0.95950328]
[1747991451341,0.29110447,110890.0,110880.0,0.95950328]
[1747991451551,0.27490447,110890.0,110880.0,0.95950328]
[1747991452240,0.29040447,110890.0,110880.0,0.95950328]
[1747991453587,0.18939377,110880.0,110870.0,0.3563]
[1747991453789,0.27893933,110880.0,110870.0,0.97722]
[1747991454759,0.28795784,110880.0,110870.0,0.97722]
[1747991454953,0.28795784,110880.0,110870.0,0.97822]
[1747991457346,0.31013933,110880.0,110870.0,0.341]
[1747991457600,0.31013933,110880.0,110870.0,0.96192]
[1747991458633,0.27893933,110880.0,110870.0,0.96192]
[1747991463628,0.29473933,110880.0,110870.0,0.96192]
[1747991464729,0.27893933,110880.0,110870.0,0.96192]
[1747991466239,0.27893933,110880.0,110870.0,0.96196]
[1747991470957,0.29453933,110880.0,110870.0,0.69168]
[1747991471200,0.31063933,110880.0,110870.0,0.96196]
[1747991471589,0.31063933,110880.0,110870.0,0.00104]
[1747991471823,0.31063933,110880.0,110870.0,0.62196]
[1747991473499,0.29453933,110880.0,110870.0,0.62196]
[1747991473708,0.29453933,110880.0,110870.0,0.00104]
[1747991473850,0.29453933,110880.0,110870.0,0.62196]
[1747991475935,0.29449369,110880.0,110870.0,0.62196]
[1747991479132,0.28795752,110880.0,110870.0,0.85199033]
[1747991479340,0.30599421,110880.0,110870.0,0.85199033]
[1747991479542,0.30599478,110880.0,110870.0,0.64687957]
[1747991479749,0.30599478,110880.0,110870.0,0.63786]
[1747991480175,0.30599478,110880.0,110870.0,0.62196]
[1747991482140,0.29697643,110880.0,110870.0,0.62196]
[1747991482516,0.287958,110880.0,110870.0,0.62196]
[1747991485531,0.27893941,110880.0,110870.0,0.62196]
[1747991487619,0.26992074,110880.0,110870.0,0.62196]
[1747991489977,0.30182074,110880.0,110870.0,0.62196]
[1747991491248,0.30182074,110880.0,110870.0,0.96196]
[1747991493265,0.30182074,110880.0,110870.0,0.34104]
[1747991493404,0.30182074,110880.0,110870.0,0.95844]
[1747991494855,0.30182074,110880.0,110870.0,0.61844]
[1747991495264,0.30182074,110880.0,110870.0,0.95844]
[1747991496088,0.30182074,110880.0,110870.0,0.68816]
[1747991496363,0.30182074,110880.0,110870.0,0.95844]
[1747991497132,0.30182074,110880.0,110870.0,0.68816]
[1747991497299,0.30182074,110880.0,110870.0,0.95844]
[1747991498344,0.29943072,110880.0,110870.0,0.95844]
[1747991500257,0.294586,110880.0,110870.0,0.95844]
[1747991500604,0.28556782,110880.0,110870.0,0.95844]
[1747991502604,0.27654939,110880.0,110870.0,0.95844]
[1747991503049,0.18700334,110880.0,110870.0,0.53947017]
[1747991503259,0.19137612,110890.0,110880.0,0.52939377]
[1747991503461,0.20941102,110890.0,110880.0,0.56393103]
[1747991503685,0.2184288,110890.0,110880.0,0.3728]
[1747991504131,0.2184288,110890.0,110880.0,0.55317518]
[1747991504545,0.23044674,110890.0,110880.0,0.3728]
[1747991504692,0.23044674,110890.0,110880.0,0.38181875]
[1747991504901,0.22142953,110890.0,110880.0,0.3728]
[1747991505094,0.22142953,110890.0,110880.0,0.3565]
[1747991505500,0.22142953,110890.0,110880.0,0.36551875]
[1747991505713,0.21241216,110890.0,110880.0,0.3565]
[1747991505922,0.21241216,110890.0,110880.0,0.34]
[1747991509109,0.20339463,110890.0,110880.0,0.72916]
[1747991511819,0.18535891,110890.0,110880.0,0.72916]
[1747991512333,0.18535891,110890.0,110880.0,0.38916]
[1747991512518,0.18535891,110890.0,110880.0,0.72916]
[1747991512961,0.20145891,110890.0,110880.0,0.72916]
[1747991516589,0.18535891,110890.0,110880.0,0.72916]
[1747991529380,0.18535891,110890.0,110880.0,1.07636]
[1747991533227,0.18535891,110890.0,110880.0,1.08537875]
[1747991533383,0.18535891,110890.0,110880.0,1.26575393]
[1747991533595,0.18535891,110890.0,110880.0,1.2747726]
[1747991533797,0.21241216,110890.0,110880.0,1.2747726]
[1747991534000,0.21241216,110890.0,110880.0,1.26575393]
[1747991535213,0.21241216,110890.0,110880.0,1.2747726]
[1747991536075,0.21241216,110890.0,110880.0,1.26575393]
[1747991536427,0.20339463,110890.0,110880.0,0.95744]
[1747991536637,0.23559463,110890.0,110880.0,0.95744]
[1747991537692,0.21949463,110890.0,110880.0,0.52037518]
[1747991537924,0.20339373,110890.0,110880.0,1.20528921]
[1747991538149,0.005,110890.0,110880.0,1.20528921]
[1747991538563,0.005,110890.0,110880.0,0.58784921]
[1747991538765,0.005,110890.0,110880.0,1.20528921]
[1747991542611,0.005,110890.0,110880.0,1.29483477]
[1747991550600,0.005,110890.0,110880.0,1.26343477]
[1747991551000,0.02303466,110890.0,110880.0,1.26343477]
[1747991551214,0.01401721,110890.0,110880.0,1.26343477]
[1747991551430,0.01401721,110890.0,110880.0,1.17280921]
[1747991551645,0.02303458,110890.0,110880.0,1.17280921]
[1747991551853,0.0230345,110890.0,110880.0,1.17280921]
[1747991553487,0.0230345,110890.0,110880.0,1.18930921]
[1747991554479,0.0230345,110890.0,110880.0,1.17280921]
[1747991554718,0.0230345,110890.0,110880.0,1.17276921]
[1747991555585,0.01401721,110890.0,110880.0,1.17276921]
[1747991558246,0.06355203,110890.0,110880.0,1.17276921]
[1747991558452,0.06355187,110890.0,110880.0,1.17276921]
[1747991558662,0.25292831,110890.0,110880.0,0.55644921]
[1747991558867,0.0545345,110890.0,110880.0,0.55644921]
[1747991559747,0.06355187,110890.0,110880.0,1.17276921]
[1747991560597,0.0380345,110890.0,110880.0,1.17276921]
[1747991560802,0.0230345,110890.0,110880.0,1.17276921]
[1747991564428,0.0230345,110890.0,110880.0,0.55644921]
[1747991564639,0.0230345,110890.0,110880.0,1.17276921]
[1747991566851,0.005,110890.0,110880.0,1.20356921]
[1747991569616,0.005,110890.0,110880.0,1.59264921]
[1747991570924,0.005,110890.0,110880.0,1.62136533]
[1747991573359,0.005,110890.0,110880.0,4.50981089]
[1747991573590,0.002,110910.0,110900.0,0.54739306]
[1747991573828,0.002,110910.0,110900.0,1.19545306]
[1747991574034,0.002,110910.0,110900.0,5.91755162]
[1747991574980,0.004,110910.0,110900.0,3.85179862]
[1747991575191,0.004,110910.0,110900.0,3.88051474]
[1747991575397,0.004,110910.0,110900.0,1.59941474]
[1747991575531,0.004,110910.0,110900.0,1.40261474]
[1747991575937,0.002,110910.0,110900.0,1.29707474]
[1747991576193,0.002,110910.0,110900.0,1.28177474]
[1747991576400,0.002,110910.0,110900.0,1.29957474]
[1747991577345,0.002,110910.0,110900.0,1.27085862]
[1747991578060,0.002,110910.0,110900.0,0.65473862]
[1747991578265,0.002,110910.0,110900.0,1.27081862]
[1747991584398,0.002,110910.0,110900.0,1.11973761]
[1747991584578,0.002,110910.0,110900.0,1.14678802]
[1747991590302,0.002,110910.0,110900.0,1.13098802]
[1747991591221,0.002,110910.0,110900.0,0.90390802]
[1747991591443,0.002,110910.0,110900.0,1.51994802]
[1747991593695,0.002,110910.0,110900.0,1.53654802]
[1747991594324,0.002,110910.0,110900.0,1.55194802]
[1747991594537,0.002,110910.0,110900.0,6.18450102]
[1747991594756,0.002,110930.0,110920.0,0.54735566]
[1747991594957,0.00209195,110930.0,110920.0,1.26954122]
[1747991596161,0.00309195,110930.0,110920.0,1.26954122]
[1747991598489,0.00309195,110930.0,110920.0,1.25294122]
[1747991604077,0.00309195,110930.0,110920.0,1.25270122]
[1747991604078,0.03409195,110930.0,110920.0,1.25270122]
[1747991605887,0.01819195,110930.0,110920.0,1.25270122]
[1747991608673,0.01819195,110930.0,110920.0,1.64162122]
[1747991610808,0.03329195,110930.0,110920.0,1.64162122]
[1747991612605,0.01819195,110930.0,110920.0,1.64162122]
[1747991612904,0.01819195,110930.0,110920.0,1.02582122]
[1747991613116,0.01819195,110930.0,110920.0,1.64158122]
[1747991614629,0.14703781,110940.0,110930.0,0.54733696]
[1747991615961,0.14903781,110940.0,110930.0,0.54733696]
[1747991616366,0.15203781,110940.0,110930.0,0.54733696]
[1747991617748,0.16863781,110940.0,110930.0,0.54733696]
[1747991618309,0.16863773,110940.0,110930.0,0.54733696]
[1747991620773,0.17765112,110940.0,110930.0,0.54733696]
[1747991621200,0.15962442,110940.0,110930.0,0.54733696]
[1747991621614,0.15061119,110940.0,110930.0,0.54733696]
[1747991622242,0.15962442,110940.0,110930.0,0.54733696]
[1747991622452,0.15061119,110940.0,110930.0,0.54733696]
[1747991623301,0.15662442,110940.0,110930.0,0.54733696]
[1747991623674,0.15562442,110940.0,110930.0,0.54733696]
[1747991624060,0.13101119,110940.0,110930.0,0.54733696]
[1747991624864,0.13101119,110940.0,110930.0,0.89297696]
[1747991625482,0.14002434,110940.0,110930.0,0.89297696]
[1747991625880,0.13101119,110940.0,110930.0,0.89297696]
[1747991626070,0.14002434,110940.0,110930.0,0.89297696]
[1747991626274,0.13101119,110940.0,110930.0,0.89297696]
[1747991627295,0.14002434,110940.0,110930.0,0.89297696]
[1747991629107,0.13101119,110940.0,110930.0,0.89297696]
[1747991629628,0.13101119,110940.0,110930.0,1.28189696]
[1747991634535,0.15542434,110940.0,110930.0,1.28189696]
[1747991634764,0.14641119,110940.0,110930.0,0.93625696]
[1747991634980,0.14641119,110940.0,110930.0,1.55177696]
[1747991636381,0.13101119,110940.0,110930.0,1.55177696]
[1747991639627,0.14002434,110940.0,110930.0,1.55177696]
[1747991639826,0.13101119,110940.0,110930.0,1.55177696]
[1747991640033,0.15622434,110940.0,110930.0,1.55177696]
[1747991641204,0.16523765,110940.0,110930.0,1.55177696]
[1747991641412,0.16523757,110940.0,110930.0,1.55177696]
[1747991641671,0.51426057,110940.0,110930.0,0.73436]
[1747991641889,0.60380613,110940.0,110930.0,1.00444]
[1747991642127,0.43506188,110940.0,110930.0,1.34444]
[1747991643685,0.43506188,110940.0,110930.0,0.72892]
[1747991643833,0.43506188,110940.0,110930.0,1.34448]
[1747991644378,0.43492552,110940.0,110930.0,1.34448]
[1747991644517,0.43492552,110940.0,110930.0,0.72892]
[1747991644734,0.43492552,110940.0,110930.0,1.34448]
[1747991650548,0.43492552,110940.0,110930.0,1.07436]
[1747991650725,0.43492552,110940.0,110930.0,1.34448]
[1747991651837,0.43492552,110940.0,110930.0,0.72892]
[1747991652040,0.43492552,110940.0,110930.0,1.34452]
[1747991653268,0.43492552,110940.0,110930.0,1.0744]
[1747991653473,0.43492552,110940.0,110930.0,1.34452]
[1747991654838,0.43492552,110940.0,110930.0,0.6156]
[1747991658796,0.43492552,110940.0,110930.0,0.34548]
[1747991659000,0.43492552,110940.0,110930.0,0.61564]
[1747991660455,0.44946637,110940.0,110930.0,0.34548]
[1747991660749,0.44946637,110940.0,110930.0,0.61564]
[1747991667052,0.43492552,110940.0,110930.0,0.61564]
[1747991670072,0.43492552,110940.0,110930.0,0.95564]
[1747991673116,0.43492552,110940.0,110930.0,0.34]
[1747991673382,0.43492552,110940.0,110930.0,0.95536]
[1747991678303,0.43492552,110940.0,110930.0,0.6852]
[1747991678545,0.43492552,110940.0,110930.0,0.95536]
[1747991685235,0.43492552,110940.0,110930.0,0.34]
[1747991685441,0.41872552,110940.0,110930.0,0.95536]
[1747991687231,0.43372552,110940.0,110930.0,0.95536]
[1747991691473,0.41872552,110940.0,110930.0,0.34]
[1747991691670,0.40342552,110940.0,110930.0,0.95536]
[1747991692675,0.41992552,110940.0,110930.0,0.95536]
[1747991695770,0.41992552,110940.0,110930.0,0.6852]
[1747991695977,0.43552552,110940.0,110930.0,0.95536]
[1747991700618,0.60426977,110940.0,110930.0,0.95536]
[1747991701217,0.43552552,110940.0,110930.0,0.95536]
[1747991703506,0.43552552,110940.0,110930.0,0.34]
[1747991703775,0.41992552,110940.0,110930.0,0.955]
[1747991703999,0.40342552,110940.0,110930.0,0.95492755]
[1747991704219,0.40342552,110940.0,110930.0,0.97042755]
[1747991704436,0.33190634,110940.0,110930.0,0.98612755]
[1747991704654,0.33190634,110940.0,110930.0,1.17543611]
[1747991704839,0.33190634,110940.0,110930.0,1.18445072]
[1747991705303,0.33190634,110940.0,110930.0,1.19346525]
[1747991705522,0.33190625,110940.0,110930.0,1.2024797]
[1747991705738,0.33190625,110940.0,110930.0,1.21149398]
[1747991705945,0.32289254,110940.0,110930.0,1.21149398]
[1747991706120,0.33190617,110940.0,110930.0,1.19346501]
[1747991706338,0.33190617,110940.0,110930.0,1.20247937]
[1747991706491,0.33190617,110940.0,110930.0,1.21149357]
[1747991706722,0.11557483,110940.0,110930.0,1.21149308]
[1747991708576,0.12458806,110940.0,110930.0,1.21149308]
[1747991709136,0.11557483,110940.0,110930.0,1.21149308]
[1747991709293,0.12458798,110940.0,110930.0,1.21149308]
[1747991711637,0.13360121,110940.0,110930.0,1.21149308]
[1747991712402,0.32289214,110940.0,110930.0,1.16642142]
[1747991712610,0.33190625,110940.0,110930.0,0.55375023]
[1747991712815,0.32289254,110940.0,110930.0,0.54473595]
[1747991712999,0.32289254,110940.0,110930.0,1.1686704]
[1747991713253,0.33190625,110940.0,110930.0,1.17768468]
[1747991713587,0.33190625,110940.0,110930.0,1.17768476]
[1747991713796,0.32289302,110940.0,110930.0,0.96386216]
[1747991714004,0.32289302,110940.0,110930.0,0.95484755]
[1747991714205,0.33949302,110940.0,110930.0,0.97287685]
[1747991715024,0.33047971,110940.0,110930.0,0.33992755]
[1747991715192,0.33726616,110940.0,110930.0,0.95484755]
[1747991715868,0.32146616,110940.0,110930.0,0.95484755]
[1747991717617,0.30271576,110940.0,110930.0,0.96386224]
[1747991718666,0.30271576,110940.0,110930.0,1.14415611]
[1747991718868,0.30271576,110940.0,110930.0,0.95484755]
[1747991720508,0.31172923,110940.0,110930.0,0.95484755]
[1747991720723,0.32074311,110940.0,110930.0,0.95484755]
[1747991721163,0.31172923,110940.0,110930.0,0.95484755]
[1747991721344,0.32074311,110940.0,110930.0,0.97024755]
[1747991722118,0.31172875,110940.0,110930.0,1.15054142]
[1747991722323,0.32074238,110940.0,110930.0,1.18407056]
[1747991722525,0.31172875,110940.0,110930.0,1.18407056]
[1747991722907,0.3207423,110940.0,110930.0,1.18407056]
[1747991723118,0.31172875,110940.0,110930.0,1.18407056]
[1747991723531,0.31172875,110940.0,110930.0,1.19308501]
[1747991723739,0.32074238,110940.0,110930.0,1.18407056]
[1747991724564,0.31172875,110940.0,110930.0,1.19308501]
[1747991725496,0.31172875,110940.0,110930.0,1.20209937]
[1747991725718,0.31172875,110940.0,110930.0,1.19308501]
[1747991726573,0.31172875,110940.0,110930.0,1.20209937]
[1747991726776,0.32074238,110940.0,110930.0,1.18407056]
[1747991727157,0.32074238,110940.0,110930.0,1.19308501]
[1747991727758,0.31172875,110940.0,110930.0,1.20209937]
[1747991727958,0.32074238,110940.0,110930.0,1.19308501]
[1747991728345,0.31172875,110940.0,110930.0,1.20209937]
[1747991728957,0.32074238,110940.0,110930.0,1.17758501]
[1747991729271,0.31172875,110940.0,110930.0,1.19561365]
[1747991729477,0.31172867,110940.0,110930.0,1.18659904]
[1747991729677,0.30271528,110940.0,110930.0,1.21091316]
[1747991729999,0.31172867,110940.0,110930.0,1.21091324]
[1747991730438,0.31172859,110940.0,110930.0,1.21091283]
[1747991730637,0.31172859,110940.0,110930.0,1.20189871]
[1747991730855,0.11342443,110940.0,110930.0,1.21091283]
[1747991731068,0.11342443,110940.0,110930.0,5.93301139]
[1747991731508,0.07390938,110960.0,110950.0,0.57909959]
[1747991731734,0.12950055,110970.0,110960.0,0.56388091]
[1747991731961,0.12965355,110970.0,110960.0,5.30117947]
[1747991733656,0.12965355,110970.0,110960.0,5.30217947]
[1747991733906,0.12965355,110970.0,110960.0,5.30317947]
[1747991734288,0.12965355,110970.0,110960.0,2.29282647]
[1747991734470,0.12965355,110970.0,110960.0,2.58862647]
[1747991735915,0.12965355,110970.0,110960.0,2.60290548]
[1747991738701,0.12965355,110970.0,110960.0,1.98830548]
[1747991738902,0.12965355,110970.0,110960.0,2.60278548]
[1747991739493,0.12965355,110970.0,110960.0,1.98830548]
[1747991739715,0.12965355,110970.0,110960.0,2.60274548]
[1747991740911,0.12965355,110970.0,110960.0,2.14714548]
[1747991741611,0.12965355,110970.0,110960.0,1.53270548]
[1747991741824,0.12965355,110970.0,110960.0,2.14714548]
[1747991742232,0.12965355,110970.0,110960.0,0.99750548]
[1747991742469,0.12965355,110970.0,110960.0,1.26754548]
[1747991742823,0.12965355,110970.0,110960.0,1.25326647]
[1747991744311,0.12965355,110970.0,110960.0,0.63882647]
[1747991744480,0.12965355,110970.0,110960.0,1.25322647]
[1747991744706,0.12965355,110970.0,110960.0,0.63882647]
[1747991744905,0.12965355,110970.0,110960.0,1.25322647]
[1747991745278,0.12965355,110970.0,110960.0,0.63882647]
[1747991746108,0.12965355,110970.0,110960.0,1.25322647]
[1747991746282,0.12965355,110970.0,110960.0,1.28522647]
[1747991746489,0.12965355,110970.0,110960.0,1.29947918]
[1747991748265,0.12965355,110970.0,110960.0,5.93203218]
[1747991750994,0.12965355,110970.0,110960.0,5.91777947]
[1747991753256,0.12965355,110970.0,110960.0,5.30337947]
[1747991753402,0.12965355,110970.0,110960.0,5.91777947]
[1747991759839,0.12965355,110970.0,110960.0,5.90197947]